Workbook

Sheet Budget recherche (vierge)
A1: Budget prévisionnel
A3: Merci de remplir uniquement les cellules en jaune.
A5: Nom du projet | B5: Responsable du projet | D5: Entité UNIGE | F5: Mandant | H5: Date
A8: Aide convertisseur d'heures en mois | C8: Nombre d'heures | F8: ="Durée en mois = "&ROUNDUP(E8/(21*8),2)&" mois" -> Durée en mois = 0 mois
A11: Coût direct additionnel
A12: Catégorie de personnel (Choisir dans la liste déroulante ci-dessous) | B12: Nbre Poste | C12: Taux d'activité (en %) | D12: Durée en mois | E12: Salaire mensuel, si connu d'avance (yc. 13ème salaire et sans charges soc.) | F12: Salaire moy. indicatif (sans ch. soc.) | G12: Charges sociales +23% | H12: Coût
F13: =IF(OR($A13=0,$E13<>0),"",VLOOKUP('Budget recherche (vierge)'!$A13,Lookup!$A:$E,3,FALSE)) ->  | G13: =IF(OR($E13<>"",$F13<>""),1.23,"") ->  | H13: =IF($A13=0,"",IF($E13=0,B13*C13*D13*F13*G13,B13*C13*D13*E13*G13)) -> 
F14: =IF(OR($A14=0,$E14<>0),"",VLOOKUP('Budget recherche (vierge)'!$A14,Lookup!$A:$E,3,FALSE)) ->  | H14: =IF($A14=0,"",IF($E14=0,B14*C14*D14*F14*G14,B14*C14*D14*E14*G14)) -> 
F15: =IF(OR($A15=0,$E15<>0),"",VLOOKUP('Budget recherche (vierge)'!$A15,Lookup!$A:$E,3,FALSE)) -> 
F16: =IF(OR($A16=0,$E16<>0),"",VLOOKUP('Budget recherche (vierge)'!$A16,Lookup!$A:$E,3,FALSE)) -> 
F17: =IF(OR($A17=0,$E17<>0),"",VLOOKUP('Budget recherche (vierge)'!$A17,Lookup!$A:$E,3,FALSE)) -> 
F18: =IF(OR($A18=0,$E18<>0),"",VLOOKUP('Budget recherche (vierge)'!$A18,Lookup!$A:$E,3,FALSE)) -> 
F19: =IF(OR($A19=0,$E19<>0),"",VLOOKUP('Budget recherche (vierge)'!$A19,Lookup!$A:$E,3,FALSE)) -> 
F20: =IF(OR($A20=0,$E20<>0),"",VLOOKUP('Budget recherche (vierge)'!$A20,Lookup!$A:$E,3,FALSE)) ->  | H20: =IF($A20=0,"",IF($E20=0,B20*C20*D20*F20*G20,B20*C20*D20*E20*G20)) -> 
E21: Charges de personnel (sous-total) | H21: =SUM(H13:H20) -> 0
A23: Coût direct d'encadrement
A24: Catégorie de personnel (Choisir dans la liste déroulante ci-dessous) | B24: Nbre Poste | C24: Taux d'activité (en %) | D24: Durée en mois | E24: Salaire mensuel, si connu d'avance (yc. 13ème salaire et sans charges soc.) | F24: Salaire moy. indicatif (sans ch. soc.) | G24: Charges sociales +23% | H24: Coût
F25: =IF(OR($A25=0,$E25<>0),"",VLOOKUP('Budget recherche (vierge)'!$A25,Lookup!$G:$K,3,FALSE)) ->  | G25: =IF(OR($E25<>"",$F25<>""),1.23,"") ->  | H25: =IF($A25=0,"",IF($E25=0,B25*C25*D25*F25*G25,B25*C25*D25*E25*G25)) -> 
F26: =IF(OR($A26=0,$E26<>0),"",VLOOKUP('Budget recherche (vierge)'!$A26,Lookup!$G:$K,3,FALSE)) ->  | H26: =IF($A26=0,"",IF($E26=0,B26*C26*D26*F26*G26,B26*C26*D26*E26*G26)) -> 
F27: =IF(OR($A27=0,$E27<>0),"",VLOOKUP('Budget recherche (vierge)'!$A27,Lookup!$G:$K,3,FALSE)) ->  | H27: =IF($A27=0,"",IF($E27=0,B27*C27*D27*F27*G27,B27*C27*D27*E27*G27)) -> 
F28: =IF(OR($A28=0,$E28<>0),"",VLOOKUP('Budget recherche (vierge)'!$A28,Lookup!$G:$K,3,FALSE)) ->  | H28: =IF($A28=0,"",IF($E28=0,B28*C28*D28*F28*G28,B28*C28*D28*E28*G28)) -> 
F29: =IF(OR($A29=0,$E29<>0),"",VLOOKUP('Budget recherche (vierge)'!$A29,Lookup!$G:$K,3,FALSE)) ->  | H29: =IF($A29=0,"",IF($E29=0,B29*C29*D29*F29*G29,B29*C29*D29*E29*G29)) -> 
E30: Charges de personnel (sous-total) | H30: =SUM(H25:H29) -> 0
A32: Coût direct de fonctionnement
A33: Consommables (Choisir dans la liste déroulante ci-dessous) | B33: Détails / Explications | H33: Coût
E37: Dépenses générales (sous-total) | H37: =SUM(H34:H36) -> 0
A39: Coûts liés aux équipements
A40: Immobilisations corporelles (Choisir dans la liste déroulante ci-dessous) | B40: Achat spécifique au projet? | C40: Durée en mois | D40: Coût d'acquisition | F40: Durée de vie équipement en années | G40: Coût annuel | H40: Coût
F41: =IF($A41=0,"",VLOOKUP($A41,Lookup!$R:$S,2,FALSE)) ->  | G41: =IF($A41=0,"",D41/F41) ->  | H41: =IF(AND(F41<>0,$B41="Oui"),D41,IF(OR(G41="",G41=0,C41=0),0,(G41/12)*C41)) -> 0
F42: =IF($A42=0,"",VLOOKUP($A42,Lookup!$R:$S,2,FALSE)) ->  | G42: =IF($A42=0,"",D42/F42) ->  | H42: =IF(AND(F42<>0,$B42="Oui"),D42,IF(OR(G42="",G42=0,C42=0),0,(G42/12)*C42)) -> 0
F43: =IF($A43=0,"",VLOOKUP($A43,Lookup!$R:$S,2,FALSE)) ->  | H43: 0
E44: Amortissement (sous-total) | H44: =SUM(H41:H43) -> 0
A46: Coûts liés aux locaux administratifs
A47: Catégorie de personnel (Choisir dans la liste déroulante ci-dessous) | B47: Nbre Poste | C47: Taux d'activité (en %) | D47: Durée en mois | E47: Loyer annuel | F47: Loyer mensuel | G47: Loyer en fonction du taux d'activité | H47: Coût
A48: =IF(A13="","",A13) ->  | E48: =IF(A13="","",VLOOKUP($A13,Lookup!$A:$E,5,FALSE)) ->  | F48: =IF(A13="","",E48/12) ->  | G48: =IF(A13="","",IF($C48>=0.5,$F48,$F48*$C48)) ->  | H48: =IF($A48="","",G48*D48*B48) -> 
E49: =IF(A14="","",VLOOKUP($A14,Lookup!$A:$E,5,FALSE)) ->  | H49: =IF($A49="","",G49*D49*B49) -> 
E50: =IF(A15="","",VLOOKUP($A15,Lookup!$A:$E,5,FALSE)) -> 
E51: =IF(A16="","",VLOOKUP($A16,Lookup!$A:$E,5,FALSE)) -> 
E52: =IF(A17="","",VLOOKUP($A17,Lookup!$A:$E,5,FALSE)) -> 
E53: =IF(A18="","",VLOOKUP($A18,Lookup!$A:$E,5,FALSE)) -> 
E54: =IF(A19="","",VLOOKUP($A19,Lookup!$A:$E,5,FALSE)) -> 
E55: =IF(A20="","",VLOOKUP($A20,Lookup!$A:$E,5,FALSE)) -> 
A56: En fonction de la catégorie de personnel liée au coût direct additionnel | E56: Loyer (sous-total) | H56: =SUM(H48:H55) -> 0
A58: Coûts de support administratif
A59: En pourcentage des coûts directs aditionnels et des coûts de fonctionnement | G59: 0.1 | H59: =($H$37+$H$21)*$G$59 -> 0
E61: Coût total du projet | H61: =SUM($H$21,$H30, $H$44,$H$56,$H$37,$H$59) -> 0
E63: Participation du bailleur selon contrat
A66: Récapitulatif | B66: UNIGE | C66: =#REF! ->  | D66: Total
A67: Charges de personnel | B67: =$H$21+$H$30-C67 ->  | C67: =#REF!+#REF! ->  | D67: =SUM(B67:C67) -> 
A68: Dépenses générales | B68: =$H$37-C68 ->  | C68: =#REF! -> 
A69: Amortissement | B69: =$H$44-C69 ->  | C69: =#REF! -> 
A70: Loyer | B70: =$H$56-C70 ->  | C70: =#REF! -> 
A71: Support administratif | B71: =$H$59-C71 ->  | C71: =#REF! -> 
A72: Total des coûts | B72: =SUM(B67:B71) ->  | C72: =SUM(C67:C71) -> 
A73: Répartition en pourcent | B73: =IF(B$72=0,"",B$72/$D$72) ->  | C73: =IF(C$72=0,"",C$72/$D$72) ->  | D73: =IF(D$72=0,"",D$72/$D$72) -> 
A76: Contact:
A77: Pour toutes informations complémentaires ou éventuelles questions, vous pouvez contacter le Service du budget à | G77: budgetprevisionnel@unige.ch

Sheet Exemple
A1: Budget sur la durée du projet de recherche
A3: Merci de remplir uniquement les cellules en jaune.
A5: Nom du projet | B5: Responsable du projet | D5: Entité UNIGE | F5: Mandant | H5: Date
A6: Léman Azure | B6: Jérôme TARTEMPION | D6: CISA | F6: CERN | H6: 2014-07-15
A8: À option: convertisseur d'heures en mois | C8: Nombre d'heures | E8: 1008 | F8: Durée en mois | H8: =ROUNDUP(E8/(21*8),2)&" mois" -> 6 mois
A11: Coût direct additionnel
A12: Catégorie de personnel (Choisir dans la liste déroulante ci-dessous) | B12: Nbre Poste | C12: Taux d'activité (en %) | D12: Durée en mois | E12: Salaire mensuel, si connu d'avance (yc. 13ème salaire et sans charges soc.) | F12: Salaire moy. indicatif (sans ch. soc.) | G12: Charges sociales +23% | H12: Coût | I12: Coût locaux admin. / an | J12: Coût locaux admin. | L12: Bailleurs de fonds
A13: 1400-Assistants et post-doc | B13: 1 | C13: 0.8 | D13: 6 | F13: =IF(OR($A13=0,$E13<>0),"",VLOOKUP(Exemple!$A13,Lookup!$A:$E,3,FALSE)) -> 6250 | G13: =IF(OR($E13<>"",$F13<>""),1.23,"") -> 1.23 | H13: =IF($A13=0,"",IF($E13=0,B13*C13*D13*F13*G13,B13*C13*D13*E13*G13)) -> 36900 | I13: =IF($A13=0,"",VLOOKUP($A13,Lookup!$A:$E,5,FALSE)) -> 2940 | J13: =_xlfn.IFS($D13=0,0,$C13>=0.5,($I13/12)*$D13,$C13<0.5,($I13/12)*$D13*$C13) -> 1470 | L13: =IF(OR($M13=0,$H13=""),"",$M13*$H13) -> 36900 | M13: 1
F14: =IF(OR($A14=0,$E14<>0),"",VLOOKUP(Exemple!$A14,Lookup!$A:$E,3,FALSE)) ->  | H14: =IF($A14=0,"",IF($E14=0,B14*C14*D14*F14*G14,B14*C14*D14*E14*G14)) ->  | I14: =IF($A14=0,"",VLOOKUP($A14,Lookup!$A:$E,5,FALSE)) ->  | J14: =_xlfn.IFS($D14=0,0,$C14>=0.5,($I14/12)*$D14,$C14<0.5,($I14/12)*$D14*$C14) -> 0 | L14: =IF(OR($M14=0,$H14=""),"",$M14*$H14) -> 
F15: =IF(OR($A15=0,$E15<>0),"",VLOOKUP(Exemple!$A15,Lookup!$A:$E,3,FALSE)) ->  | I15: =IF($A15=0,"",VLOOKUP($A15,Lookup!$A:$E,5,FALSE)) ->  | J15: =_xlfn.IFS($D15=0,0,$C15>=0.5,($I15/12)*$D15,$C15<0.5,($I15/12)*$D15*$C15) -> 0
F16: =IF(OR($A16=0,$E16<>0),"",VLOOKUP(Exemple!$A16,Lookup!$A:$E,3,FALSE)) ->  | I16: =IF($A16=0,"",VLOOKUP($A16,Lookup!$A:$E,5,FALSE)) ->  | J16: =_xlfn.IFS($D16=0,0,$C16>=0.5,($I16/12)*$D16,$C16<0.5,($I16/12)*$D16*$C16) -> 0
F17: =IF(OR($A17=0,$E17<>0),"",VLOOKUP(Exemple!$A17,Lookup!$A:$E,3,FALSE)) ->  | I17: =IF($A17=0,"",VLOOKUP($A17,Lookup!$A:$E,5,FALSE)) ->  | J17: 0
F18: =IF(OR($A18=0,$E18<>0),"",VLOOKUP(Exemple!$A18,Lookup!$A:$E,3,FALSE)) ->  | I18: =IF($A18=0,"",VLOOKUP($A18,Lookup!$A:$E,5,FALSE)) ->  | J18: 0
F19: =IF(OR($A19=0,$E19<>0),"",VLOOKUP(Exemple!$A19,Lookup!$A:$E,3,FALSE)) ->  | I19: =IF($A19=0,"",VLOOKUP($A19,Lookup!$A:$E,5,FALSE)) ->  | J19: 0
F20: =IF(OR($A20=0,$E20<>0),"",VLOOKUP(Exemple!$A20,Lookup!$A:$E,3,FALSE)) ->  | H20: =IF($A20=0,"",IF($E20=0,B20*C20*D20*F20*G20,B20*C20*D20*E20*G20)) ->  | I20: =IF($A20=0,"",VLOOKUP($A20,Lookup!$A:$E,5,FALSE)) ->  | J20: 0
E21: Charges de personnel (sous-total) | H21: =SUM(H13:H20) -> 36900 | I21: =SUM(I13:I20) -> 2940 | J21: =SUM(J13:J20) -> 1470 | L21: =SUM(L13:L20) -> 36900 | M21: =IF(H21=0,0,L21/H21) -> 1
A23: Coût direct d'encadrement
A24: Catégorie de personnel (Choisir dans la liste déroulante ci-dessous) | B24: Nbre Poste | C24: Taux d'activité (en %) | D24: Durée en mois | E24: Salaire mensuel, si connu d'avance (yc. 13ème salaire et sans charges soc.) | F24: Salaire moy. indicatif (sans ch. soc.) | G24: Charges sociales +23% | H24: Coût | L24: Bailleurs de fonds
A25: 0100-Professeurs ordinaires | B25: 1 | C25: 0.05 | D25: 6 | F25: =IF(OR($A25=0,$E25<>0),"",VLOOKUP(Exemple!$A25,Lookup!$G:$K,3,FALSE)) -> 17250 | G25: =IF(OR($E25<>"",$F25<>""),1.23,"") -> 1.23 | H25: =IF($A25=0,"",IF($E25=0,B25*C25*D25*F25*G25,B25*C25*D25*E25*G25)) -> 6365.25 | L25: =IF(OR($M25=0,$H25=""),"",$M25*$H25) -> 5092.2 | M25: 0.8
F26: =IF(OR($A26=0,$E26<>0),"",VLOOKUP(Exemple!$A26,Lookup!$G:$K,3,FALSE)) ->  | H26: =IF($A26=0,"",IF($E26=0,B26*C26*D26*F26*G26,B26*C26*D26*E26*G26)) ->  | L26: =IF(OR($M26=0,$H26=""),"",$M26*$H26) -> 
F27: =IF(OR($A27=0,$E27<>0),"",VLOOKUP(Exemple!$A27,Lookup!$G:$K,3,FALSE)) ->  | H27: =IF($A27=0,"",IF($E27=0,B27*C27*D27*F27*G27,B27*C27*D27*E27*G27)) -> 
F28: =IF(OR($A28=0,$E28<>0),"",VLOOKUP(Exemple!$A28,Lookup!$G:$K,3,FALSE)) ->  | H28: =IF($A28=0,"",IF($E28=0,B28*C28*D28*F28*G28,B28*C28*D28*E28*G28)) -> 
F29: =IF(OR($A29=0,$E29<>0),"",VLOOKUP(Exemple!$A29,Lookup!$G:$K,3,FALSE)) ->  | H29: =IF($A29=0,"",IF($E29=0,B29*C29*D29*F29*G29,B29*C29*D29*E29*G29)) -> 
E30: Charges de personnel (sous-total) | H30: =SUM(H25:H29) -> 6365.25 | L30: =SUM(L25:L29) -> 5092.2 | M30: =IF(H30=0,0,L30/H30) -> 0.8
A32: Coût direct de fonctionnement
A33: Consommables (Choisir dans la liste déroulante ci-dessous) | H33: Coût | L33: Bailleurs de fonds
A34: Déplacements | H34: 500 | L34: =IF(OR($M34=0,$H34=""),"",$M34*$H34) -> 500 | M34: 1
E37: Dépenses générales (sous-total) | H37: =SUM(H34:H36) -> 500 | L37: =SUM(L34:L36) -> 500 | M37: =IF(H37=0,0,L37/H37) -> 1
A39: Coûts liés aux équipements
A40: Immobilisations corporelles (Choisir dans la liste déroulante ci-dessous) | B40: Connaissez-vous le coût lié à l'équipement? | C40: Durée du projet en mois | D40: Coût d'acquisition | E40: Durée de vie de l'équipement en années | F40: Coût annuel | H40: Coût | L40: Bailleurs de fonds
A41: Mobilier | B41: Non | C41: 6 | D41: 5000 | E41: =IF($A41=0,"",VLOOKUP($A41,Lookup!$R:$S,2,FALSE)) -> 8 | G41: =IF($A41=0,"",D41/E41) -> 625 | H41: =IF(AND(F41<>0,Exemple!$B41="Oui"),F41,IF(OR(G41="",G41=0,C41=0),0,(G41/12)*C41)) -> 312.5 | L41: =IF(OR($M41=0,$H41=""),"",$M41*$H41) -> 31.25 | M41: 0.1
A42: Appareils scientifiques | B42: Oui | E42: =IF($A42=0,"",VLOOKUP($A42,Lookup!$R:$S,2,FALSE)) -> 5 | F42: 5000 | G42: =IF($A42=0,"",D42/E42) -> 0 | H42: =IF(AND(F42<>0,Exemple!$B42="Oui"),F42,IF(OR(G42="",G42=0,C42=0),0,(G42/12)*C42)) -> 5000 | L42: 5000 | M42: 1
E43: =IF($A43=0,"",VLOOKUP($A43,Lookup!$R:$S,2,FALSE)) ->  | H43: =IF(AND(F43<>0,Exemple!$B43="Oui"),F43,IF(OR(G43="",G43=0,C43=0),0,(G43/12)*C43)) -> 0
E44: Amortissements (sous-total) | H44: =SUM(H41:H43) -> 5312.5 | L44: =SUM(L41:L43) -> 5031.25 | M44: =IF(H44=0,0,L44/H44) -> 0.9470588235
A46: Coûts liés aux locaux administratifs
A47: En fonction de la catégorie de personnel liée au coût direct additionnel | E47: Loyer (sous-total) | H47: =$J$21 -> 1470 | L47: =IF(OR($M47=0,$H47=0),0,$M47*$H47) -> 0
A49: Coûts de support administratif
A50: En pourcentage des coûts directs aditionnels et des coûts de fonctionnement | G50: 0.1 | H50: =($H$37+$H$21)*$G$50 -> 3740 | L50: =IF(OR($M50=0,$H50=0),0,$M50*$H50) -> 0
E52: Coût total du projet | H52: =SUM($H$21,$H30, $H$44,$H$47,$H$37,$H$50) -> 54287.75 | L52: =SUM($L$50,$L$47,$L$44,$L$37,$L$30,$L$21) -> 47523.45 | M52: =IF(H52=0,0,L52/H52) -> 0.8753991462
E54: Versement contracltuel | H54: 47523
A56: Récapitulatif | B56: UNIGE | C56: Bailleurs de fonds | D56: Total
A57: Charges de personnel | B57: =$H$21+$H$30-$L$21-$L$30 -> 1273.05 | C57: =L21+L30 -> 41992.2 | D57: =SUM(B57:C57) -> 43265.25
A58: Dépenses générales | B58: =$H$37-$L$37 -> 0 | C58: =$L$37 -> 500 | D58: =SUM(B58:C58) -> 500
A59: Amortissement | B59: =$H$44-$L$44 -> 281.25 | C59: =$L$44 -> 5031.25 | D59: =SUM(B59:C59) -> 5312.5
A60: Loyer | B60: =$H$47-$L$47 -> 1470 | C60: =$L$47 -> 0 | D60: =SUM(B60:C60) -> 1470
A61: Support administratif | B61: =$H$50-$L$50 -> 3740 | C61: =$L$50 -> 0 | D61: =SUM(B61:C61) -> 3740
A62: Total des coûts | B62: =SUM(B57:B61) -> 6764.3 | C62: =SUM(C57:C61) -> 47523.45 | D62: =SUM(B62:C62) -> 54287.75
A63: Répartition en pourcent | B63: =IF(B$62=0,"",B$62/$D$62) -> 0.1246008538 | C63: =IF(C$62=0,"",C$62/$D$62) -> 0.8753991462 | D63: =IF(D$62=0,"",D$62/$D$62) -> 1
A65: Contact:
A66: Pour toutes informations complémentaires ou éventuelles questions, vous pouvez contacter le Service du budget à | G66: budget@unige.ch

Sheet Glossaire
A1: Budget sur la durée du projet de recherche
A3: Glossaire
A5: Coût: | B5: Tous les coûts s'entendent pour l'ensemble de la durée du projet.
A6: Coût direct additionnel: | B6: Coût supplémentaire pour mener le projet en terme de charges en personnel.
A7: Coût direct d'encadrement: | B7: Les coûts directs d'encadrement concernent les ressources en personnel du corps enseignant et corps professoral nécessaires à l’encadrement du projet.
A8: Nbre Poste | B8: Le nombre de poste désigne ici le nombre de personne , et non des équivalents plein temps. Il ne peut y avoir que des nombres entiers.
A9: Taux d'activité (en %) | B9: Le taux consacré au projet (40h par semaine = 100%).
A10: Durée en mois | B10: Le nombre de mois durant lequel le collaborateur travaille pour le projet.
A11: Salaire mensuel, si connu d'avance (sans charges soc.) | B11: Si vous connaissez d'avance le salaire de la personne, veuillez inscrire le salaire mensuel en excluant toutes charges sociales payées par l'employeur. Si vous conaissez seulement la classe et l'annuité de la personne, vous pouvez utiliser l'échelle de traitements ci-après.
A12: Echelle de traitement | B12: https://www.ge.ch/document/echelle-traitements-au-01012020.
A13: Salaire moy. Indicatif (sans ch. soc.) | B13: Le salaire moyen mensuel se calcule automatiquement en fonction de la catégorie de personnel. Il est indicatif et utilisé quand le salaire n'est pas connu d'avance.
A14: Coût direct de fonctionnement | B14: Ces coûts concernent tous les consommables dont l'utilisation est immédiate. Tout bien pouvant être amorti sur plusieurs années doit être exclu de ce type de dépenses, et doivent être considéré comme équipements (immobilisation corporelle).
A15: Coûts liés aux équipements | B15: Ces coûts sont rattachés à l'utilisation d'équipement dont la durée de vie dépend du type de bien. Les coûts liés aux équipements se calculent en fonction du coût d'acquisition du bien, de sa durée de vie et de l'utilisation de l'équipement en mois.
A16: Coûts liés aux locaux | B16: Les coûts liés aux locaux représentent les charges d'infrastructure qui varient selon la catégorie de personnel liée au coût direct additionnel. Le calcul prend en compte le coût des locaux selon la catégorie de personnel, la durée du projet ainsi que le taux d'activité s'il est inférieur à 50%. Pour un taux d'activité égal ou supérieur à 50% on considère que les locaux seront occupés à 100% pendant la durée du projet.
A17: Coûts de support administratif | B17: Ces coûts peuvent être assimilés à des overheads. Ce sont des coûts indirects liés à l'administration centrale.

Sheet Lookup (hidden)
A1: Personnel direct | B1: Salaire moyen / an | C1: Salaire moyen mensuel | D1: m2 | E1: Coût locaux admin | G1: Personnel d'encadrement | H1: Salaire moyen / an | I1: Salaire moyen mensuel | J1: m2 | K1: Coût locaux admin | M1: Locaux | N1: Coûts / m2 | P1: Consommables | R1: Immobilisations | S1: Durée d'utilité
A2: 1100-Chargés d'Ens., Cons. Etudes | B2: 131000 | C2: =B2/12 -> 10916.66667 | D2: 10 | E2: =D2*$N$3 -> 3920 | G2: 0100-Professeurs ordinaires | H2: 207000 | I2: =H2/12 -> 17250 | J2: 20 | K2: =J2*$N$3 -> 7840 | M2: Archivage et surfaces d'entreposage | N2: 196 | P2: Fourniture | R2: Mobilier | S2: 8
A3: 1200-MER,chefs de clinique scient. | B3: 151000 | C3: 12583.33333 | D3: 10 | E3: 3920 | G3: 0150-Professeurs associés | H3: 164000 | I3: =H3/12 -> 13666.66667 | J3: 15 | K3: =J3*$N$3 -> 5880 | M3: Bureaux | N3: 392 | P3: Entretien mobilier & machine | R3: Machines et outillage | S3: 5
A4: 1220-Chargés de cours | B4: 147000 | C4: 12250 | D4: 10 | E4: 3920 | G4: 0200-Professeurs assistants | H4: 140000 | I4: 11666.66667 | J4: 15 | K4: =J4*$N$3 -> 5880 | M4: Locaux du domaine social | N4: 430 | P4: Déplacements | R4: Appareils scientifiques | S4: 5
A5: 1260-Coll. scientifique I et II | B5: 117000 | C5: 9750 | D5: 10 | E5: 3920 | G5: 0500-Professeurs associés (PAE) | H5: 155000 | I5: 12916.66667 | J5: 15 | K5: =J5*$N$3 -> 5880 | M5: Bibliothèques | N5: 468 | P5: Consommables | R5: Matériel informatique | S5: 4
A6: 1300-Maîtres assistants | B6: 100000 | C6: 8333.333333 | D6: 7.5 | E6: 2940 | G6: 0600-Professeurs titulaires | H6: 157000 | I6: 13083.33333 | J6: 15 | K6: =J6*$N$3 -> 5880 | M6: Salle de cours | N6: 667 | P6: Divers
A7: 1400-Assistants et post-doc | B7: 75000 | C7: 6250 | D7: 7.5 | E7: 2940 | G7: 1100-Chargés d'Ens., Cons. Etudes | H7: 131000 | I7: 10916.66667 | J7: 10 | K7: 3920 | M7: Laboratoires | N7: 805
A8: 1401-Assistants-médecins | B8: 99000 | C8: 8250 | D8: 7.5 | E8: 2940 | G8: 1200-MER,chefs de clinique scient. | H8: 151000 | I8: 12583.33333 | J8: 10 | K8: 3920
A9: 1510-Auxiliaires de Recherche | B9: 58000 | C9: 4833.333333 | D9: 7.5 | E9: 2940 | G9: 1220-Chargés de cours | H9: 147000 | I9: 12250 | J9: 10 | K9: 3920
A10: 2000-Personnel scientifiques | B10: 129000 | C10: 10750 | D10: 10 | E10: 3920 | G10: 1260-Coll. scientifique I et II | H10: 117000 | I10: 9750 | J10: 10 | K10: 3920
A11: 2100-Techniciens | B11: 103000 | C11: 8583.333333 | D11: 9 | E11: 3528
A12: 2200-Laborants et ass. techniques | B12: 94000 | C12: 7833.333333 | D12: 9 | E12: 3528
A13: 2300-Aides ass. techn et aides labo | B13: 78000 | C13: 6500 | D13: 9 | E13: 3528
A14: 2400-Bibliothécaires, documentalist | B14: 104000 | C14: 8666.666667 | D14: 12 | E14: 4704
A15: 2700-Adm, chefs serv, commis adm | B15: 124000 | C15: 10333.33333 | D15: 15 | E15: 5880
A16: 2705-Coordination info documentaire | B16: 120000 | C16: 10000 | D16: 9 | E16: 3528
A17: 2710-BDA Responsables | B17: 109000 | C17: 9083.333333 | D17: 15 | E17: 5880
A18: 2715-BDA Spécialistes disciplines | B18: 107000 | C18: 8916.666667 | D18: 12 | E18: 4704
A19: 2800-Secr, comptables, aide bibl | B19: 89000 | C19: 7416.666667 | D19: 9 | E19: 3528
A20: 2805-Commis 2 DIS | B20: 58000 | C20: 4833.333333 | D20: 9 | E20: =D20*$N$3 -> 3528
A21: 0100-Professeurs ordinaires | B21: 207000 | C21: =B21/12 -> 17250 | D21: 20 | E21: 7840
A22: 0150-Professeurs associés | B22: 164000 | C22: =B22/12 -> 13666.66667 | D22: 15 | E22: 5880
A23: 0200-Professeurs assistants | B23: 140000 | C23: 11666.66667 | D23: 15 | E23: 5880
A24: 0500-Professeurs associés (PAE) | B24: 155000 | C24: 12916.66667 | D24: 15 | E24: 5880
A25: 0600-Professeurs titulaires | B25: 157000 | C25: 13083.33333 | D25: 15 | E25: 5880

Sheet Exporter la feuille de calcul (hidden)
A1: LOC_ANNEE | B1: BAT_C_ALPHA | C1: BAT_NO_BAT_PLAN | D1: BAT_NOM | E1: STATUT | F1: TYPLOCAL | G1: LIBELLE_TYPE | H1: DESCRIPTION_COUT | I1: COUT_M2 | J1: SURFACE
A2: 2011 | B2: BC | C2: 1 | D2: UNI BASTIONS | E2: A | F2: AR | G2: ARCHIVES | H2: Archivage et surfaces d'entreposage (Ar) | I2: 196 | J2: 17
A3: 2011 | B3: BC | C3: 1 | D3: UNI BASTIONS | E3: A | F3: AU | G3: AUDITOIRE | H3: Salles de cours (Hö) | I3: 667 | J3: 67
A4: 2011 | B4: BC | C4: 1 | D4: UNI BASTIONS | E4: A | F4: AU | G4: AUDITOIRE | H4: Salles de cours (Hö) | I4: 667 | J4: 69.5
A5: 2011 | B5: BC | C5: 1 | D5: UNI BASTIONS | E5: A | F5: AU | G5: AUDITOIRE | H5: Salles de cours (Hö) | I5: 667 | J5: 75.5
A6: 2011 | B6: BC | C6: 1 | D6: UNI BASTIONS | E6: A | F6: AU | G6: AUDITOIRE | H6: Salles de cours (Hö) | I6: 667 | J6: 76.5
A7: 2011 | B7: BC | C7: 1 | D7: UNI BASTIONS | E7: A | F7: AU | G7: AUDITOIRE | H7: Salles de cours (Hö) | I7: 667 | J7: 76.5
A8: 2011 | B8: BC | C8: 1 | D8: UNI BASTIONS | E8: A | F8: AU | G8: AUDITOIRE | H8: Salles de cours (Hö) | I8: 667 | J8: 79
A9: 2011 | B9: BC | C9: 1 | D9: UNI BASTIONS | E9: A | F9: AU | G9: AUDITOIRE | H9: Salles de cours (Hö) | I9: 667 | J9: 79
A10: 2011 | B10: BC | C10: 1 | D10: UNI BASTIONS | E10: A | F10: AU | G10: AUDITOIRE | H10: Salles de cours (Hö) | I10: 667 | J10: 107.5
A11: 2011 | B11: BC | C11: 1 | D11: UNI BASTIONS | E11: A | F11: AU | G11: AUDITOIRE | H11: Salles de cours (Hö) | I11: 667 | J11: 119
A12: 2011 | B12: BC | C12: 1 | D12: UNI BASTIONS | E12: A | F12: AU | G12: AUDITOIRE | H12: Salles de cours (Hö) | I12: 667 | J12: 168.5
A13: 2011 | B13: BC | C13: 1 | D13: UNI BASTIONS | E13: A | F13: AU | G13: AUDITOIRE | H13: Salles de cours (Hö) | I13: 667 | J13: 202.5
A14: 2011 | B14: BC | C14: 1 | D14: UNI BASTIONS | E14: A | F14: AU | G14: AUDITOIRE | H14: Salles de cours (Hö) | I14: 667 | J14: 302.5
A15: 2011 | B15: BC | C15: 1 | D15: UNI BASTIONS | E15: A | F15: AX | G15: ANNEXES | H15: Archivage et surfaces d'entreposage (Ar) | I15: 196 | J15: 25
A16: 2011 | B16: BC | C16: 1 | D16: UNI BASTIONS | E16: A | F16: BI | G16: BIBLIOTHEQUE, SALLE DE LECTURE | H16: Bibliothèques (Bi) | I16: 468 | J16: 2
A17: 2011 | B17: BC | C17: 1 | D17: UNI BASTIONS | E17: A | F17: BI | G17: BIBLIOTHEQUE, SALLE DE LECTURE | H17: Bibliothèques (Bi) | I17: 468 | J17: 16.9
A18: 2011 | B18: BC | C18: 1 | D18: UNI BASTIONS | E18: A | F18: BI | G18: BIBLIOTHEQUE, SALLE DE LECTURE | H18: Bibliothèques (Bi) | I18: 468 | J18: 22.5
A19: 2011 | B19: BC | C19: 1 | D19: UNI BASTIONS | E19: A | F19: BI | G19: BIBLIOTHEQUE, SALLE DE LECTURE | H19: Bibliothèques (Bi) | I19: 468 | J19: 35
A20: 2011 | B20: BC | C20: 1 | D20: UNI BASTIONS | E20: A | F20: BI | G20: BIBLIOTHEQUE, SALLE DE LECTURE | H20: Bibliothèques (Bi) | I20: 468 | J20: 38.5
A21: 2011 | B21: BC | C21: 1 | D21: UNI BASTIONS | E21: A | F21: BI | G21: BIBLIOTHEQUE, SALLE DE LECTURE | H21: Bibliothèques (Bi) | I21: 468 | J21: 40
A22: 2011 | B22: BC | C22: 1 | D22: UNI BASTIONS | E22: A | F22: BI | G22: BIBLIOTHEQUE, SALLE DE LECTURE | H22: Bibliothèques (Bi) | I22: 468 | J22: 54.3
A23: 2011 | B23: BC | C23: 1 | D23: UNI BASTIONS | E23: A | F23: BI | G23: BIBLIOTHEQUE, SALLE DE LECTURE | H23: Bibliothèques (Bi) | I23: 468 | J23: 55.6
A24: 2011 | B24: BC | C24: 1 | D24: UNI BASTIONS | E24: A | F24: BI | G24: BIBLIOTHEQUE, SALLE DE LECTURE | H24: Bibliothèques (Bi) | I24: 468 | J24: 58
A25: 2011 | B25: BC | C25: 1 | D25: UNI BASTIONS | E25: A | F25: BI | G25: BIBLIOTHEQUE, SALLE DE LECTURE | H25: Bibliothèques (Bi) | I25: 468 | J25: 58
A26: 2011 | B26: BC | C26: 1 | D26: UNI BASTIONS | E26: A | F26: BI | G26: BIBLIOTHEQUE, SALLE DE LECTURE | H26: Bibliothèques (Bi) | I26: 468 | J26: 148
A27: 2011 | B27: BC | C27: 1 | D27: UNI BASTIONS | E27: A | F27: BI | G27: BIBLIOTHEQUE, SALLE DE LECTURE | H27: Bibliothèques (Bi) | I27: 468 | J27: 246
A28: 2011 | B28: BC | C28: 1 | D28: UNI BASTIONS | E28: A | F28: BU | G28: BUREAU | H28: Bureaux (Bü) | I28: 392 | J28: 6
A29: 2011 | B29: BC | C29: 1 | D29: UNI BASTIONS | E29: A | F29: BU | G29: BUREAU | H29: Bureaux (Bü) | I29: 392 | J29: 10
A30: 2011 | B30: BC | C30: 1 | D30: UNI BASTIONS | E30: A | F30: BU | G30: BUREAU | H30: Bureaux (Bü) | I30: 392 | J30: 11.5
A31: 2011 | B31: BC | C31: 1 | D31: UNI BASTIONS | E31: A | F31: BU | G31: BUREAU | H31: Bureaux (Bü) | I31: 392 | J31: 12
A32: 2011 | B32: BC | C32: 1 | D32: UNI BASTIONS | E32: A | F32: BU | G32: BUREAU | H32: Bureaux (Bü) | I32: 392 | J32: 12
A33: 2011 | B33: BC | C33: 1 | D33: UNI BASTIONS | E33: A | F33: BU | G33: BUREAU | H33: Bureaux (Bü) | I33: 392 | J33: 12.5
A34: 2011 | B34: BC | C34: 1 | D34: UNI BASTIONS | E34: A | F34: BU | G34: BUREAU | H34: Bureaux (Bü) | I34: 392 | J34: 12.5
A35: 2011 | B35: BC | C35: 1 | D35: UNI BASTIONS | E35: A | F35: BU | G35: BUREAU | H35: Bureaux (Bü) | I35: 392 | J35: 12.5
A36: 2011 | B36: BC | C36: 1 | D36: UNI BASTIONS | E36: A | F36: BU | G36: BUREAU | H36: Bureaux (Bü) | I36: 392 | J36: 14
A37: 2011 | B37: BC | C37: 1 | D37: UNI BASTIONS | E37: A | F37: BU | G37: BUREAU | H37: Bureaux (Bü) | I37: 392 | J37: 14.5
A38: 2011 | B38: BC | C38: 1 | D38: UNI BASTIONS | E38: A | F38: BU | G38: BUREAU | H38: Bureaux (Bü) | I38: 392 | J38: 15
A39: 2011 | B39: BC | C39: 1 | D39: UNI BASTIONS | E39: A | F39: BU | G39: BUREAU | H39: Bureaux (Bü) | I39: 392 | J39: 15
A40: 2011 | B40: BC | C40: 1 | D40: UNI BASTIONS | E40: A | F40: BU | G40: BUREAU | H40: Bureaux (Bü) | I40: 392 | J40: 15.5
A41: 2011 | B41: BC | C41: 1 | D41: UNI BASTIONS | E41: A | F41: BU | G41: BUREAU | H41: Bureaux (Bü) | I41: 392 | J41: 15.5
A42: 2011 | B42: BC | C42: 1 | D42: UNI BASTIONS | E42: A | F42: BU | G42: BUREAU | H42: Bureaux (Bü) | I42: 392 | J42: 16.5
A43: 2011 | B43: BC | C43: 1 | D43: UNI BASTIONS | E43: A | F43: BU | G43: BUREAU | H43: Bureaux (Bü) | I43: 392 | J43: 17
A44: 2011 | B44: BC | C44: 1 | D44: UNI BASTIONS | E44: A | F44: BU | G44: BUREAU | H44: Bureaux (Bü) | I44: 392 | J44: 17.5
A45: 2011 | B45: BC | C45: 1 | D45: UNI BASTIONS | E45: A | F45: BU | G45: BUREAU | H45: Bureaux (Bü) | I45: 392 | J45: 17.5
A46: 2011 | B46: BC | C46: 1 | D46: UNI BASTIONS | E46: A | F46: BU | G46: BUREAU | H46: Bureaux (Bü) | I46: 392 | J46: 19
A47: 2011 | B47: BC | C47: 1 | D47: UNI BASTIONS | E47: A | F47: BU | G47: BUREAU | H47: Bureaux (Bü) | I47: 392 | J47: 19
A48: 2011 | B48: BC | C48: 1 | D48: UNI BASTIONS | E48: A | F48: BU | G48: BUREAU | H48: Bureaux (Bü) | I48: 392 | J48: 19.5
A49: 2011 | B49: BC | C49: 1 | D49: UNI BASTIONS | E49: A | F49: BU | G49: BUREAU | H49: Bureaux (Bü) | I49: 392 | J49: 20.5
A50: 2011 | B50: BC | C50: 1 | D50: UNI BASTIONS | E50: A | F50: BU | G50: BUREAU | H50: Bureaux (Bü) | I50: 392 | J50: 23
A51: 2011 | B51: BC | C51: 1 | D51: UNI BASTIONS | E51: A | F51: BU | G51: BUREAU | H51: Bureaux (Bü) | I51: 392 | J51: 23
A52: 2011 | B52: BC | C52: 1 | D52: UNI BASTIONS | E52: A | F52: BU | G52: BUREAU | H52: Bureaux (Bü) | I52: 392 | J52: 23.5
A53: 2011 | B53: BC | C53: 1 | D53: UNI BASTIONS | E53: A | F53: BU | G53: BUREAU | H53: Bureaux (Bü) | I53: 392 | J53: 23.5
A54: 2011 | B54: BC | C54: 1 | D54: UNI BASTIONS | E54: A | F54: BU | G54: BUREAU | H54: Bureaux (Bü) | I54: 392 | J54: 23.5
A55: 2011 | B55: BC | C55: 1 | D55: UNI BASTIONS | E55: A | F55: BU | G55: BUREAU | H55: Bureaux (Bü) | I55: 392 | J55: 24
A56: 2011 | B56: BC | C56: 1 | D56: UNI BASTIONS | E56: A | F56: BU | G56: BUREAU | H56: Bureaux (Bü) | I56: 392 | J56: 25
A57: 2011 | B57: BC | C57: 1 | D57: UNI BASTIONS | E57: A | F57: BU | G57: BUREAU | H57: Bureaux (Bü) | I57: 392 | J57: 25
A58: 2011 | B58: BC | C58: 1 | D58: UNI BASTIONS | E58: A | F58: BU | G58: BUREAU | H58: Bureaux (Bü) | I58: 392 | J58: 25
A59: 2011 | B59: BC | C59: 1 | D59: UNI BASTIONS | E59: A | F59: BU | G59: BUREAU | H59: Bureaux (Bü) | I59: 392 | J59: 25.5
A60: 2011 | B60: BC | C60: 1 | D60: UNI BASTIONS | E60: A | F60: BU | G60: BUREAU | H60: Bureaux (Bü) | I60: 392 | J60: 25.5
A61: 2011 | B61: BC | C61: 1 | D61: UNI BASTIONS | E61: A | F61: BU | G61: BUREAU | H61: Bureaux (Bü) | I61: 392 | J61: 25.5
A62: 2011 | B62: BC | C62: 1 | D62: UNI BASTIONS | E62: A | F62: BU | G62: BUREAU | H62: Bureaux (Bü) | I62: 392 | J62: 29
A63: 2011 | B63: BC | C63: 1 | D63: UNI BASTIONS | E63: A | F63: BU | G63: BUREAU | H63: Bureaux (Bü) | I63: 392 | J63: 29
A64: 2011 | B64: BC | C64: 1 | D64: UNI BASTIONS | E64: A | F64: BU | G64: BUREAU | H64: Bureaux (Bü) | I64: 392 | J64: 30.5
A65: 2011 | B65: BC | C65: 1 | D65: UNI BASTIONS | E65: A | F65: BU | G65: BUREAU | H65: Bureaux (Bü) | I65: 392 | J65: 30.5
A66: 2011 | B66: BC | C66: 1 | D66: UNI BASTIONS | E66: A | F66: BU | G66: BUREAU | H66: Bureaux (Bü) | I66: 392 | J66: 32
A67: 2011 | B67: BC | C67: 1 | D67: UNI BASTIONS | E67: A | F67: BU | G67: BUREAU | H67: Bureaux (Bü) | I67: 392 | J67: 32.5
A68: 2011 | B68: BC | C68: 1 | D68: UNI BASTIONS | E68: A | F68: BU | G68: BUREAU | H68: Bureaux (Bü) | I68: 392 | J68: 32.5
A69: 2011 | B69: BC | C69: 1 | D69: UNI BASTIONS | E69: A | F69: BU | G69: BUREAU | H69: Bureaux (Bü) | I69: 392 | J69: 32.5
A70: 2011 | B70: BC | C70: 1 | D70: UNI BASTIONS | E70: A | F70: BU | G70: BUREAU | H70: Bureaux (Bü) | I70: 392 | J70: 33.5
A71: 2011 | B71: BC | C71: 1 | D71: UNI BASTIONS | E71: A | F71: BU | G71: BUREAU | H71: Bureaux (Bü) | I71: 392 | J71: 33.5
A72: 2011 | B72: BC | C72: 1 | D72: UNI BASTIONS | E72: A | F72: BU | G72: BUREAU | H72: Bureaux (Bü) | I72: 392 | J72: 36
A73: 2011 | B73: BC | C73: 1 | D73: UNI BASTIONS | E73: A | F73: BU | G73: BUREAU | H73: Bureaux (Bü) | I73: 392 | J73: 36.5
A74: 2011 | B74: BC | C74: 1 | D74: UNI BASTIONS | E74: A | F74: BU | G74: BUREAU | H74: Bureaux (Bü) | I74: 392 | J74: 43.5
A75: 2011 | B75: BC | C75: 1 | D75: UNI BASTIONS | E75: A | F75: BU | G75: BUREAU | H75: Bureaux (Bü) | I75: 392 | J75: 45.5
A76: 2011 | B76: BC | C76: 1 | D76: UNI BASTIONS | E76: A | F76: BU | G76: BUREAU | H76: Bureaux (Bü) | I76: 392 | J76: 90
A77: 2011 | B77: BC | C77: 1 | D77: UNI BASTIONS | E77: A | F77: CA | G77: CAFETERIA | H77: Locaux du domaine social (So) | I77: 430 | J77: 4.5
A78: 2011 | B78: BC | C78: 1 | D78: UNI BASTIONS | E78: A | F78: CA | G78: CAFETERIA | H78: Locaux du domaine social (So) | I78: 430 | J78: 12.5
A79: 2011 | B79: BC | C79: 1 | D79: UNI BASTIONS | E79: A | F79: CA | G79: CAFETERIA | H79: Locaux du domaine social (So) | I79: 430 | J79: 23
A80: 2011 | B80: BC | C80: 1 | D80: UNI BASTIONS | E80: A | F80: CA | G80: CAFETERIA | H80: Locaux du domaine social (So) | I80: 430 | J80: 80
A81: 2011 | B81: BC | C81: 1 | D81: UNI BASTIONS | E81: A | F81: CO | G81: COULOIR | H81: Local fictif - sans coût | I81: 0 | J81: 17
A82: 2011 | B82: BC | C82: 1 | D82: UNI BASTIONS | E82: A | F82: DP | G82: DEPOT | H82: Archivage et surfaces d'entreposage (Ar) | I82: 196 | J82: 10
A83: 2011 | B83: BC | C83: 1 | D83: UNI BASTIONS | E83: A | F83: DP | G83: DEPOT | H83: Archivage et surfaces d'entreposage (Ar) | I83: 196 | J83: 11.5
A84: 2011 | B84: BC | C84: 1 | D84: UNI BASTIONS | E84: A | F84: DP | G84: DEPOT | H84: Archivage et surfaces d'entreposage (Ar) | I84: 196 | J84: 23
A85: 2011 | B85: BC | C85: 1 | D85: UNI BASTIONS | E85: A | F85: MT | G85: MEDIATHEQUE | H85: Bibliothèques (Bi) | I85: 468 | J85: 76.5
A86: 2011 | B86: BC | C86: 1 | D86: UNI BASTIONS | E86: A | F86: MT | G86: MEDIATHEQUE | H86: Bibliothèques (Bi) | I86: 468 | J86: 112
A87: 2011 | B87: BC | C87: 1 | D87: UNI BASTIONS | E87: A | F87: NA | G87: NON ATTRIBUE | H87: Local fictif - sans coût | I87: 0 | J87: 3.5
A88: 2011 | B88: BC | C88: 1 | D88: UNI BASTIONS | E88: A | F88: NA | G88: NON ATTRIBUE | H88: Local fictif - sans coût | I88: 0 | J88: 7
A89: 2011 | B89: BC | C89: 1 | D89: UNI BASTIONS | E89: A | F89: NA | G89: NON ATTRIBUE | H89: Local fictif - sans coût | I89: 0 | J89: 7
A90: 2011 | B90: BC | C90: 1 | D90: UNI BASTIONS | E90: A | F90: NA | G90: NON ATTRIBUE | H90: Local fictif - sans coût | I90: 0 | J90: 11.5
A91: 2011 | B91: BC | C91: 1 | D91: UNI BASTIONS | E91: A | F91: NA | G91: NON ATTRIBUE | H91: Local fictif - sans coût | I91: 0 | J91: 12
A92: 2011 | B92: BC | C92: 1 | D92: UNI BASTIONS | E92: A | F92: NA | G92: NON ATTRIBUE | H92: Local fictif - sans coût | I92: 0 | J92: 14
A93: 2011 | B93: BC | C93: 1 | D93: UNI BASTIONS | E93: A | F93: NA | G93: NON ATTRIBUE | H93: Local fictif - sans coût | I93: 0 | J93: 15.5
A94: 2011 | B94: BC | C94: 1 | D94: UNI BASTIONS | E94: A | F94: NA | G94: NON ATTRIBUE | H94: Local fictif - sans coût | I94: 0 | J94: 15.5
A95: 2011 | B95: BC | C95: 1 | D95: UNI BASTIONS | E95: A | F95: NA | G95: NON ATTRIBUE | H95: Local fictif - sans coût | I95: 0 | J95: 16
A96: 2011 | B96: BC | C96: 1 | D96: UNI BASTIONS | E96: A | F96: NA | G96: NON ATTRIBUE | H96: Local fictif - sans coût | I96: 0 | J96: 16
A97: 2011 | B97: BC | C97: 1 | D97: UNI BASTIONS | E97: A | F97: NA | G97: NON ATTRIBUE | H97: Local fictif - sans coût | I97: 0 | J97: 16
A98: 2011 | B98: BC | C98: 1 | D98: UNI BASTIONS | E98: A | F98: NA | G98: NON ATTRIBUE | H98: Local fictif - sans coût | I98: 0 | J98: 23
A99: 2011 | B99: BC | C99: 1 | D99: UNI BASTIONS | E99: A | F99: NA | G99: NON ATTRIBUE | H99: Local fictif - sans coût | I99: 0 | J99: 24
A100: 2011 | B100: BC | C100: 1 | D100: UNI BASTIONS | E100: A | F100: NA | G100: NON ATTRIBUE | H100: Local fictif - sans coût | I100: 0 | J100: 25
A101: 2011 | B101: BC | C101: 1 | D101: UNI BASTIONS | E101: A | F101: NA | G101: NON ATTRIBUE | H101: Local fictif - sans coût | I101: 0 | J101: 26.5
A102: 2011 | B102: BC | C102: 1 | D102: UNI BASTIONS | E102: A | F102: NA | G102: NON ATTRIBUE | H102: Local fictif - sans coût | I102: 0 | J102: 27.5
A103: 2011 | B103: BC | C103: 1 | D103: UNI BASTIONS | E103: A | F103: NA | G103: NON ATTRIBUE | H103: Local fictif - sans coût | I103: 0 | J103: 29
A104: 2011 | B104: BC | C104: 1 | D104: UNI BASTIONS | E104: A | F104: PC | G104: SALLE DE TERMINAUX | H104: Laboratoires (La) | I104: 805 | J104: 29.5
A105: 2011 | B105: BC | C105: 1 | D105: UNI BASTIONS | E105: A | F105: PC | G105: SALLE DE TERMINAUX | H105: Laboratoires (La) | I105: 805 | J105: 42.5
A106: 2011 | B106: BC | C106: 1 | D106: UNI BASTIONS | E106: A | F106: PC | G106: SALLE DE TERMINAUX | H106: Laboratoires (La) | I106: 805 | J106: 133.5
A107: 2011 | B107: BC | C107: 1 | D107: UNI BASTIONS | E107: A | F107: RE | G107: SALLE DE REUNION | H107: Salles d'enseignement (UR) | I107: 392 | J107: 36
A108: 2011 | B108: BC | C108: 1 | D108: UNI BASTIONS | E108: A | F108: SM | G108: SALLE DE SEMINAIRE / COURS | H108: Salles d'enseignement (UR) | I108: 392 | J108: 26
A109: 2011 | B109: BC | C109: 1 | D109: UNI BASTIONS | E109: A | F109: SM | G109: SALLE DE SEMINAIRE / COURS | H109: Salles d'enseignement (UR) | I109: 392 | J109: 32
A110: 2011 | B110: BC | C110: 1 | D110: UNI BASTIONS | E110: A | F110: SM | G110: SALLE DE SEMINAIRE / COURS | H110: Salles d'enseignement (UR) | I110: 392 | J110: 37
A111: 2011 | B111: BC | C111: 1 | D111: UNI BASTIONS | E111: A | F111: SM | G111: SALLE DE SEMINAIRE / COURS | H111: Salles d'enseignement (UR) | I111: 392 | J111: 40
A112: 2011 | B112: BC | C112: 1 | D112: UNI BASTIONS | E112: A | F112: SM | G112: SALLE DE SEMINAIRE / COURS | H112: Salles d'enseignement (UR) | I112: 392 | J112: 40
A113: 2011 | B113: BC | C113: 1 | D113: UNI BASTIONS | E113: A | F113: SM | G113: SALLE DE SEMINAIRE / COURS | H113: Salles d'enseignement (UR) | I113: 392 | J113: 44
A114: 2011 | B114: BC | C114: 1 | D114: UNI BASTIONS | E114: A | F114: SM | G114: SALLE DE SEMINAIRE / COURS | H114: Salles d'enseignement (UR) | I114: 392 | J114: 45
A115: 2011 | B115: BC | C115: 1 | D115: UNI BASTIONS | E115: A | F115: SM | G115: SALLE DE SEMINAIRE / COURS | H115: Salles d'enseignement (UR) | I115: 392 | J115: 45
A116: 2011 | B116: BC | C116: 1 | D116: UNI BASTIONS | E116: A | F116: SM | G116: SALLE DE SEMINAIRE / COURS | H116: Salles d'enseignement (UR) | I116: 392 | J116: 60.5
A117: 2011 | B117: BC | C117: 1 | D117: UNI BASTIONS | E117: A | F117: SM | G117: SALLE DE SEMINAIRE / COURS | H117: Salles d'enseignement (UR) | I117: 392 | J117: 68.5
A118: 2011 | B118: BC | C118: 1 | D118: UNI BASTIONS | E118: A | F118: SM | G118: SALLE DE SEMINAIRE / COURS | H118: Salles d'enseignement (UR) | I118: 392 | J118: 78
A119: 2011 | B119: BC | C119: 1 | D119: UNI BASTIONS | E119: A | F119: SM | G119: SALLE DE SEMINAIRE / COURS | H119: Salles d'enseignement (UR) | I119: 392 | J119: 115.5
A120: 2011 | B120: BC | C120: 1 | D120: UNI BASTIONS | E120: A | F120: SM | G120: SALLE DE SEMINAIRE / COURS | H120: Salles d'enseignement (UR) | I120: 392 | J120: 117
A121: 2011 | B121: BC | C121: 1 | D121: UNI BASTIONS | E121: A | F121: SM | G121: SALLE DE SEMINAIRE / COURS | H121: Salles d'enseignement (UR) | I121: 392 | J121: 210
A122: 2011 | B122: BC | C122: 1 | D122: UNI BASTIONS | E122: A | F122: ST | G122: STOCKAGE | H122: Archivage et surfaces d'entreposage (Ar) | I122: 196 | J122: 7.5
A123: 2011 | B123: BC | C123: 1 | D123: UNI BASTIONS | E123: A | F123: ST | G123: STOCKAGE | H123: Archivage et surfaces d'entreposage (Ar) | I123: 196 | J123: 23
A124: 2011 | B124: BC | C124: 1 | D124: UNI BASTIONS | E124: A | F124: ST | G124: STOCKAGE | H124: Archivage et surfaces d'entreposage (Ar) | I124: 196 | J124: 40
A125: 2011 | B125: BC | C125: 1 | D125: UNI BASTIONS | E125: A | F125: ST | G125: STOCKAGE | H125: Archivage et surfaces d'entreposage (Ar) | I125: 196 | J125: 67
A126: 2011 | B126: AJ | C126: 2 | D126: AILE JURA | E126: A | F126: AR | G126: ARCHIVES | H126: Archivage et surfaces d'entreposage (Ar) | I126: 196 | J126: 5.5
A127: 2011 | B127: AJ | C127: 2 | D127: AILE JURA | E127: A | F127: AT | G127: ATELIER | H127: Laboratoires (La) | I127: 805 | J127: 15.5
A128: 2011 | B128: AJ | C128: 2 | D128: AILE JURA | E128: A | F128: AT | G128: ATELIER | H128: Laboratoires (La) | I128: 805 | J128: 38.5
A129: 2011 | B129: AJ | C129: 2 | D129: AILE JURA | E129: A | F129: AX | G129: ANNEXES | H129: Archivage et surfaces d'entreposage (Ar) | I129: 196 | J129: 88.1
A130: 2011 | B130: AJ | C130: 2 | D130: AILE JURA | E130: A | F130: BI | G130: BIBLIOTHEQUE, SALLE DE LECTURE | H130: Bibliothèques (Bi) | I130: 468 | J130: 15
A131: 2011 | B131: AJ | C131: 2 | D131: AILE JURA | E131: A | F131: BI | G131: BIBLIOTHEQUE, SALLE DE LECTURE | H131: Bibliothèques (Bi) | I131: 468 | J131: 23.5
A132: 2011 | B132: AJ | C132: 2 | D132: AILE JURA | E132: A | F132: BI | G132: BIBLIOTHEQUE, SALLE DE LECTURE | H132: Bibliothèques (Bi) | I132: 468 | J132: 31.5
A133: 2011 | B133: AJ | C133: 2 | D133: AILE JURA | E133: A | F133: BI | G133: BIBLIOTHEQUE, SALLE DE LECTURE | H133: Bibliothèques (Bi) | I133: 468 | J133: 34.5
A134: 2011 | B134: AJ | C134: 2 | D134: AILE JURA | E134: A | F134: BI | G134: BIBLIOTHEQUE, SALLE DE LECTURE | H134: Bibliothèques (Bi) | I134: 468 | J134: 51
A135: 2011 | B135: AJ | C135: 2 | D135: AILE JURA | E135: A | F135: BI | G135: BIBLIOTHEQUE, SALLE DE LECTURE | H135: Bibliothèques (Bi) | I135: 468 | J135: 52
A136: 2011 | B136: AJ | C136: 2 | D136: AILE JURA | E136: A | F136: BI | G136: BIBLIOTHEQUE, SALLE DE LECTURE | H136: Bibliothèques (Bi) | I136: 468 | J136: 61
A137: 2011 | B137: AJ | C137: 2 | D137: AILE JURA | E137: A | F137: BI | G137: BIBLIOTHEQUE, SALLE DE LECTURE | H137: Bibliothèques (Bi) | I137: 468 | J137: 85.5
A138: 2011 | B138: AJ | C138: 2 | D138: AILE JURA | E138: A | F138: BI | G138: BIBLIOTHEQUE, SALLE DE LECTURE | H138: Bibliothèques (Bi) | I138: 468 | J138: 85.5
A139: 2011 | B139: AJ | C139: 2 | D139: AILE JURA | E139: A | F139: BI | G139: BIBLIOTHEQUE, SALLE DE LECTURE | H139: Bibliothèques (Bi) | I139: 468 | J139: 85.5
A140: 2011 | B140: AJ | C140: 2 | D140: AILE JURA | E140: A | F140: BI | G140: BIBLIOTHEQUE, SALLE DE LECTURE | H140: Bibliothèques (Bi) | I140: 468 | J140: 184.5
A141: 2011 | B141: AJ | C141: 2 | D141: AILE JURA | E141: A | F141: BI | G141: BIBLIOTHEQUE, SALLE DE LECTURE | H141: Bibliothèques (Bi) | I141: 468 | J141: 226
A142: 2011 | B142: AJ | C142: 2 | D142: AILE JURA | E142: A | F142: BI | G142: BIBLIOTHEQUE, SALLE DE LECTURE | H142: Bibliothèques (Bi) | I142: 468 | J142: 239
A143: 2011 | B143: AJ | C143: 2 | D143: AILE JURA | E143: A | F143: BI | G143: BIBLIOTHEQUE, SALLE DE LECTURE | H143: Bibliothèques (Bi) | I143: 468 | J143: 244
A144: 2011 | B144: AJ | C144: 2 | D144: AILE JURA | E144: A | F144: BI | G144: BIBLIOTHEQUE, SALLE DE LECTURE | H144: Bibliothèques (Bi) | I144: 468 | J144: 248
A145: 2011 | B145: AJ | C145: 2 | D145: AILE JURA | E145: A | F145: BI | G145: BIBLIOTHEQUE, SALLE DE LECTURE | H145: Bibliothèques (Bi) | I145: 468 | J145: 272.5
A146: 2011 | B146: AJ | C146: 2 | D146: AILE JURA | E146: A | F146: BI | G146: BIBLIOTHEQUE, SALLE DE LECTURE | H146: Bibliothèques (Bi) | I146: 468 | J146: 467
A147: 2011 | B147: AJ | C147: 2 | D147: AILE JURA | E147: A | F147: BU | G147: BUREAU | H147: Bureaux (Bü) | I147: 392 | J147: 13
A148: 2011 | B148: AJ | C148: 2 | D148: AILE JURA | E148: A | F148: BU | G148: BUREAU | H148: Bureaux (Bü) | I148: 392 | J148: 15
A149: 2011 | B149: AJ | C149: 2 | D149: AILE JURA | E149: A | F149: BU | G149: BUREAU | H149: Bureaux (Bü) | I149: 392 | J149: 15
A150: 2011 | B150: AJ | C150: 2 | D150: AILE JURA | E150: A | F150: BU | G150: BUREAU | H150: Bureaux (Bü) | I150: 392 | J150: 15
A151: 2011 | B151: AJ | C151: 2 | D151: AILE JURA | E151: A | F151: BU | G151: BUREAU | H151: Bureaux (Bü) | I151: 392 | J151: 17
A152: 2011 | B152: AJ | C152: 2 | D152: AILE JURA | E152: A | F152: BU | G152: BUREAU | H152: Bureaux (Bü) | I152: 392 | J152: 17
A153: 2011 | B153: AJ | C153: 2 | D153: AILE JURA | E153: A | F153: BU | G153: BUREAU | H153: Bureaux (Bü) | I153: 392 | J153: 17.5
A154: 2011 | B154: AJ | C154: 2 | D154: AILE JURA | E154: A | F154: BU | G154: BUREAU | H154: Bureaux (Bü) | I154: 392 | J154: 17.5
A155: 2011 | B155: AJ | C155: 2 | D155: AILE JURA | E155: A | F155: BU | G155: BUREAU | H155: Bureaux (Bü) | I155: 392 | J155: 18
A156: 2011 | B156: AJ | C156: 2 | D156: AILE JURA | E156: A | F156: BU | G156: BUREAU | H156: Bureaux (Bü) | I156: 392 | J156: 18
A157: 2011 | B157: AJ | C157: 2 | D157: AILE JURA | E157: A | F157: BU | G157: BUREAU | H157: Bureaux (Bü) | I157: 392 | J157: 18
A158: 2011 | B158: AJ | C158: 2 | D158: AILE JURA | E158: A | F158: BU | G158: BUREAU | H158: Bureaux (Bü) | I158: 392 | J158: 18
A159: 2011 | B159: AJ | C159: 2 | D159: AILE JURA | E159: A | F159: BU | G159: BUREAU | H159: Bureaux (Bü) | I159: 392 | J159: 18
A160: 2011 | B160: AJ | C160: 2 | D160: AILE JURA | E160: A | F160: BU | G160: BUREAU | H160: Bureaux (Bü) | I160: 392 | J160: 18
A161: 2011 | B161: AJ | C161: 2 | D161: AILE JURA | E161: A | F161: BU | G161: BUREAU | H161: Bureaux (Bü) | I161: 392 | J161: 18
A162: 2011 | B162: AJ | C162: 2 | D162: AILE JURA | E162: A | F162: BU | G162: BUREAU | H162: Bureaux (Bü) | I162: 392 | J162: 18
A163: 2011 | B163: AJ | C163: 2 | D163: AILE JURA | E163: A | F163: BU | G163: BUREAU | H163: Bureaux (Bü) | I163: 392 | J163: 18
A164: 2011 | B164: AJ | C164: 2 | D164: AILE JURA | E164: A | F164: BU | G164: BUREAU | H164: Bureaux (Bü) | I164: 392 | J164: 18
A165: 2011 | B165: AJ | C165: 2 | D165: AILE JURA | E165: A | F165: BU | G165: BUREAU | H165: Bureaux (Bü) | I165: 392 | J165: 18
A166: 2011 | B166: AJ | C166: 2 | D166: AILE JURA | E166: A | F166: BU | G166: BUREAU | H166: Bureaux (Bü) | I166: 392 | J166: 18
A167: 2011 | B167: AJ | C167: 2 | D167: AILE JURA | E167: A | F167: BU | G167: BUREAU | H167: Bureaux (Bü) | I167: 392 | J167: 18
A168: 2011 | B168: AJ | C168: 2 | D168: AILE JURA | E168: A | F168: BU | G168: BUREAU | H168: Bureaux (Bü) | I168: 392 | J168: 19.5
A169: 2011 | B169: AJ | C169: 2 | D169: AILE JURA | E169: A | F169: BU | G169: BUREAU | H169: Bureaux (Bü) | I169: 392 | J169: 20
A170: 2011 | B170: AJ | C170: 2 | D170: AILE JURA | E170: A | F170: BU | G170: BUREAU | H170: Bureaux (Bü) | I170: 392 | J170: 20
A171: 2011 | B171: AJ | C171: 2 | D171: AILE JURA | E171: A | F171: BU | G171: BUREAU | H171: Bureaux (Bü) | I171: 392 | J171: 20
A172: 2011 | B172: AJ | C172: 2 | D172: AILE JURA | E172: A | F172: BU | G172: BUREAU | H172: Bureaux (Bü) | I172: 392 | J172: 20
A173: 2011 | B173: AJ | C173: 2 | D173: AILE JURA | E173: A | F173: BU | G173: BUREAU | H173: Bureaux (Bü) | I173: 392 | J173: 20
A174: 2011 | B174: AJ | C174: 2 | D174: AILE JURA | E174: A | F174: BU | G174: BUREAU | H174: Bureaux (Bü) | I174: 392 | J174: 20
A175: 2011 | B175: AJ | C175: 2 | D175: AILE JURA | E175: A | F175: BU | G175: BUREAU | H175: Bureaux (Bü) | I175: 392 | J175: 20
A176: 2011 | B176: AJ | C176: 2 | D176: AILE JURA | E176: A | F176: BU | G176: BUREAU | H176: Bureaux (Bü) | I176: 392 | J176: 20
A177: 2011 | B177: AJ | C177: 2 | D177: AILE JURA | E177: A | F177: BU | G177: BUREAU | H177: Bureaux (Bü) | I177: 392 | J177: 21.5
A178: 2011 | B178: AJ | C178: 2 | D178: AILE JURA | E178: A | F178: BU | G178: BUREAU | H178: Bureaux (Bü) | I178: 392 | J178: 21.5
A179: 2011 | B179: AJ | C179: 2 | D179: AILE JURA | E179: A | F179: BU | G179: BUREAU | H179: Bureaux (Bü) | I179: 392 | J179: 21.5
A180: 2011 | B180: AJ | C180: 2 | D180: AILE JURA | E180: A | F180: BU | G180: BUREAU | H180: Bureaux (Bü) | I180: 392 | J180: 21.5
A181: 2011 | B181: AJ | C181: 2 | D181: AILE JURA | E181: A | F181: BU | G181: BUREAU | H181: Bureaux (Bü) | I181: 392 | J181: 21.5
A182: 2011 | B182: AJ | C182: 2 | D182: AILE JURA | E182: A | F182: BU | G182: BUREAU | H182: Bureaux (Bü) | I182: 392 | J182: 23
A183: 2011 | B183: AJ | C183: 2 | D183: AILE JURA | E183: A | F183: BU | G183: BUREAU | H183: Bureaux (Bü) | I183: 392 | J183: 25
A184: 2011 | B184: AJ | C184: 2 | D184: AILE JURA | E184: A | F184: BU | G184: BUREAU | H184: Bureaux (Bü) | I184: 392 | J184: 25.5
A185: 2011 | B185: AJ | C185: 2 | D185: AILE JURA | E185: A | F185: BU | G185: BUREAU | H185: Bureaux (Bü) | I185: 392 | J185: 25.5
A186: 2011 | B186: AJ | C186: 2 | D186: AILE JURA | E186: A | F186: BU | G186: BUREAU | H186: Bureaux (Bü) | I186: 392 | J186: 25.5
A187: 2011 | B187: AJ | C187: 2 | D187: AILE JURA | E187: A | F187: BU | G187: BUREAU | H187: Bureaux (Bü) | I187: 392 | J187: 26
A188: 2011 | B188: AJ | C188: 2 | D188: AILE JURA | E188: A | F188: BU | G188: BUREAU | H188: Bureaux (Bü) | I188: 392 | J188: 26
A189: 2011 | B189: AJ | C189: 2 | D189: AILE JURA | E189: A | F189: BU | G189: BUREAU | H189: Bureaux (Bü) | I189: 392 | J189: 26
A190: 2011 | B190: AJ | C190: 2 | D190: AILE JURA | E190: A | F190: BU | G190: BUREAU | H190: Bureaux (Bü) | I190: 392 | J190: 27
A191: 2011 | B191: AJ | C191: 2 | D191: AILE JURA | E191: A | F191: BU | G191: BUREAU | H191: Bureaux (Bü) | I191: 392 | J191: 27.5
A192: 2011 | B192: AJ | C192: 2 | D192: AILE JURA | E192: A | F192: BU | G192: BUREAU | H192: Bureaux (Bü) | I192: 392 | J192: 27.5
A193: 2011 | B193: AJ | C193: 2 | D193: AILE JURA | E193: A | F193: BU | G193: BUREAU | H193: Bureaux (Bü) | I193: 392 | J193: 27.5
A194: 2011 | B194: AJ | C194: 2 | D194: AILE JURA | E194: A | F194: BU | G194: BUREAU | H194: Bureaux (Bü) | I194: 392 | J194: 29.5
A195: 2011 | B195: AJ | C195: 2 | D195: AILE JURA | E195: A | F195: CO | G195: COULOIR | H195: Local fictif - sans coût | I195: 0 | J195: 56.25
A196: 2011 | B196: AJ | C196: 2 | D196: AILE JURA | E196: A | F196: CO | G196: COULOIR | H196: Local fictif - sans coût | I196: 0 | J196: 61.8
A197: 2011 | B197: AJ | C197: 2 | D197: AILE JURA | E197: A | F197: CO | G197: COULOIR | H197: Local fictif - sans coût | I197: 0 | J197: 125.15
A198: 2011 | B198: AJ | C198: 2 | D198: AILE JURA | E198: A | F198: CO | G198: COULOIR | H198: Local fictif - sans coût | I198: 0 | J198: 169.8
A199: 2011 | B199: AJ | C199: 2 | D199: AILE JURA | E199: A | F199: DP | G199: DEPOT | H199: Archivage et surfaces d'entreposage (Ar) | I199: 196 | J199: 5.5
A200: 2011 | B200: AJ | C200: 2 | D200: AILE JURA | E200: A | F200: DP | G200: DEPOT | H200: Archivage et surfaces d'entreposage (Ar) | I200: 196 | J200: 5.5
... 5524 more rows
